Workbook

Sheet 1
AU1: Приложение
AU2: к Порядку составления и утверждения плана
AT3: финансово-хозяйственной деятельности
AS4: государственных учреждений Самарской области, | AU4: государственного учреждения Самарской области,
AU5: находящихся в ведении министерства
AU6: образования и науки Самарской области
AI9: УТВЕРЖДАЮ
AH10: Руководителю СВУ МО и НСО
AH11: (наименование должности лица, утверждающего документ)
AH12: ____________________________ | CA12: А.Н.Каврын
AI13: (подпись) | BY13: (расшифровка подписи)
BM14: " | BR14: " | CM14: 20 | CQ14: 18 | CU14: г.
A17: 1 | M17: План финансово-хозяйственной деятельности
A18: на 2018 год и на плановый период 2019 и 2020 годов | BA18: на 20 | BF18: год и плановый период
Z19: " " 2018г.
CO21: КОДЫ
CM22: Форма по КФД
CM23: Дата
A26: Наименование | AH26: государственное бюджетное общеобразовательное учреждение Самарской области средняя общеобразовательная школа имени Героя Советского Союза Василия Степановича Чекмасова с.Большое Микушкино муниципального района Исаклинский Самарской области | CM26: по ОКПО | CO26: 48101414
A27: государственного учреждения
A30: ИНН/КПП | AG30: 6381018855/638101001
A31: Единица измерения: рубли (с точностью до двух знаков после запятой - 0,00) | CM31: по ОКЕИ | CO31: 383
A34: Наименование органа, осуществляющего | AT34: Министерство образования и науки Самарской области
A35: функции и полномочия учредителя
A37: Адрес фактического местонахождения | AT37: 446592, Российская Федерация, Самарская область. Исаклинский район, с.Большое Микушкино, д. 104
A38: государственного учреждения
A41: I. Сведения о деятельности государственного учреждения
A43: 1.1. Цели деятельности государственного учреждения :
A44: Представление гражданам Российской Федерации, проживающим на территории Самарской области, образовательных услуг по основным общеобразовательным программам в целях обеспечения государственных гарантий прав граждан на получение общедоступного и бесплатного дошкольного,начального общего,основного общего,среднего (полного) общего образования,а также дополнительного образования, в общеобразовательных учреждениях; формирования общей культуры личности обучающихся на основе усвоения обязательного минимума содержания общеобразовательных программ; адаптация обучающихся к жизни в обществе; созданияе основы для осознанного выбора обучающимися и последующего освоения ими профессиональных образовательных программ,воспитания гражданственности, трудолюбия, уважения к правам и свободам человека, любви к окружающей природе, родному краю, семье, формирования здорового образа жизни.
A45: 1.2. Виды деятельности государственного учреждения :
A46: Образование основное общее , образование дошкольное , образование начальное общее ,образование среднее общее
A47: 1.3. Перечень услуг (работ), осуществляемых на платной основе:
A50: 1.4. Общая балансовая стоимость недвижимого государственного имущества на дату
A51: составления плана:0,00
A53: 1.5.Общая балансовая стоимость движимого государственного имущества на дату составления Плана 7118244,86
A54: в том числе балансовая стоимость особо ценного движимого имущества: 2929600,00

Sheet 2.1
DO2: Таблица 2
A4: III. Показатели по поступлениям и выплатам государственного учреждения
A6: Наименование показателя | AR6: Код строки | AS6: Коды бюджетной классификации Российской федерации | AX6: Код дополнительной классификации | AY6: Объем финансового обеспечения, руб. (с точностью до двух знаков после запятой - 0,00)
AY7: 2018 год (очередной финансовый год)
AY8: Всего | BQ8: в том числе
BQ9: средства областного бюджета, поступающие из федерального бюджета | CF9: субсидии на финансовое обеспечение выполнения государственного задания | CG9: субсидии, предоставляемые в соответствии с абзацем пункта 1 статьи 78.1 Бюджетного кодекса Российской Федерации (целевые субсидии) | CH9: субсидии на осуществление капитальных вложений | CW9: средства обязательного медицинского страхования | DL9: поступления от оказания услуг (выполнения работ) на платной основе и от иной приносящей доход деятельности
AS10: Код раздела | AT10: Код подраздела | AU10: Код целевой статьи расходов | AV10: Код операций сектора государственного управления (для поступрений) | AW10: Код вида расходов (для выплат) | AX10: Код экономической классификации расходов | DL10: всего | EA10: из них гранты
A11: 1 | AR11: 2 | AS11: 3 | AT11: 4 | AU11: 5 | AV11: 6 | AW11: 7 | AX11: 8 | AY11: 9 | BQ11: 10 | CF11: 11 | CG11: 12 | CH11: 13 | CW11: 14 | DL11: 15 | EB11: 16
A12: Поступления, всего: | AR12: 100 | AS12: х | AT12: х | AU12: х | AV12: х | AW12: х | AX12: х | AY12: =CF12+CG12+DL12 -> 26973165.36 | CF12: =CF15 -> 22494000 | CG12: =CG21 -> 3720817 | DL12: =DL15 -> 758348.36
A13: в том числе: | AW13: х | AX13: х | AY13: =SUM(BQ13:DZ13) -> 0
A14: доходы от собственности (сдача в аренду государственного недвижимого имущества и прочее) | AR14: 110 | AW14: х | AX14: х | AY14: =SUM(BQ14:DZ14) -> 0 | BQ14: х | CF14: х | CG14: х | CH14: х | CW14: х | EB14: х
A15: доходы от оказания услуг, работ | AR15: 120 | AV15: 130 | AW15: х | AX15: х | AY15: =CF15+DL15 -> 23252348.36 | CF15: =CF16+CF17 -> 22494000 | CG15: х | CH15: х | DL15: =DL19+DL18 -> 758348.36
A16: доходы от оказания услуг, работ | AS16: 07 | AT16: 02 | AU16: 0210060300 | AV16: 130 | AW16: х | AX16: х | AY16: =CF16 -> 14649000 | CF16: 14649000
A17: доходы от оказания услуг, работ | AS17: 07 | AT17: 01 | AU17: 0210060350 | AV17: 130 | AW17: х | AX17: х | AY17: =CF17 -> 7845000 | CF17: 7845000
A18: доходы от оказания услуг, работ | AS18: 00 | AT18: 00 | AU18: 0000000000 | AV18: 130 | AW18: х | AX18: х | AY18: =DL18 -> 722898.36 | DL18: 722898.36
A19: доходы от оказания услуг, работ | AS19: 00 | AT19: 00 | AU19: 0000000000 | AV19: 180 | AW19: х | AX19: х | AY19: =DL19 -> 35450 | DL19: 35450
A20: доходы от штрафов, пеней, иных сумм принудительного изъятия | AR20: 130 | AW20: х | AX20: х | AY20: =SUM(BQ20:DZ20) -> 0 | BQ20: х | CF20: х | CG20: х | CH20: х | CW20: х | EB20: х
A21: целевые субсидии, предоставленные из бюджета | AR21: 150 | AV21: 180 | AW21: х | AX21: х | AY21: =CG21 -> 3720817 | CF21: х | CG21: =CG22+CG23+CG24+CG25+CG26+CG27+CG28+CG32+CG29+CG30+CG31+CG33+CG34+CG35 -> 3720817 | CW21: х | DL21: х | EI21: х
A22: целевые субсидии, предоставленные из бюджета | AS22: 07 | AT22: 09 | AU22: 0210060340 | AV22: 180 | AW22: х | AX22: х | AY22: 0 | CF22: х | CG22: 0 | CW22: х | DL22: х | EI22: х
A23: целевые субсидии, предоставленные из бюджета | AS23: 07 | AT23: 09 | AU23: 0210060440 | AV23: 180 | AW23: х | AX23: х | AY23: 1392000 | CG23: 1392000
A24: целевые субсидии, предоставленные из бюджета | AS24: 07 | AT24: 01 | AU24: 0210060410 | AV24: 180 | AW24: х | AX24: х | AY24: 195000 | CG24: 195000
A25: целевые субсидии, предоставленные из бюджета | AS25: 07 | AT25: 01 | AU25: 0210060450 | AV25: 180 | AW25: х | AX25: х | AY25: 20000 | CG25: 20000
A26: целевые субсидии, предоставленные из бюджета | AS26: 07 | AT26: 02 | AU26: 0210060450 | AV26: 180 | AW26: х | AX26: х | AY26: 48000 | CG26: 48000
A27: целевые субсидии, предоставленные из бюджета | AS27: 07 | AT27: 02 | AU27: 0210060530 | AV27: 180 | AW27: х | AX27: х | AY27: 478000 | CG27: 478000
A28: целевые субсидии, предоставленные из бюджета | AS28: 07 | AT28: 01 | AU28: 0210062580 | AV28: 180 | AW28: х | AX28: х | AY28: 818000 | CG28: 818000
A29: целевые субсидии, предоставленные из бюджета | AS29: 07 | AT29: 09 | AU29: 0210060520 | AV29: 180 | AW29: х | AX29: х | AY29: 162750 | CG29: 162750
A30: целевые субсидии, предоставленные из бюджета | AS30: 07 | AT30: 09 | AU30: 0210060340 | AV30: 180 | AW30: х | AX30: х | AY30: 79641 | CG30: 79641
A31: целевые субсидии, предоставленные из бюджета | AS31: 07 | AT31: 09 | AU31: 0210060310 | AV31: 180 | AW31: х | AX31: х | AY31: 45108 | CG31: 45108
A32: целевые субсидии, предоставленные из бюджета | AS32: 07 | AT32: 09 | AU32: 9070065730 | AV32: 180 | AW32: х | AX32: х | AY32: 296360 | CG32: 296360
A33: целевые субсидии, предоставленные из бюджета | AS33: 07 | AT33: 07 | AU33: 4120065900 | AV33: 180 | AW33: х | AX33: х | AY33: =SUM(BQ33:DZ33) -> 113697 | BQ33: х | CF33: х | CG33: 113697 | CH33: х | CW33: х
A34: целевые субсидии, предоставленные из бюджета | AS34: 07 | AT34: 02 | AU34: 9070066770 | AV34: 180 | AW34: х | AX34: х | AY34: =SUM(BQ34:DZ34) -> 56637 | BQ34: х | CF34: х | CG34: 56637 | CH34: х | CW34: х | EA34: х | EB34: х
A35: целевые субсидии, предоставленные из бюджета | AS35: 07 | AT35: 01 | AU35: 9070066780 | AV35: 180 | AW35: х | AX35: х | AY35: =SUM(BQ35:DZ35) -> 15624 | BQ35: х | CF35: х | CG35: 15624 | CH35: х | CW35: х
AW36: х | AX36: х | AY36: =SUM(BQ36:DZ36) -> 0 | BQ36: х | CF36: х | CG36: х | CH36: х | CW36: х
A37: Расходы, всего: | AR37: 200 | AS37: х | AT37: х | AU37: х | AV37: х | AW37: х | AX37: х | AY37: =CF37+CG37+DL37 -> 26975165.36 | CF37: =CF38+CF87+CF62+CF72 -> 22494000 | CG37: =CG38+CG72+CG87+CG65 -> 3720817 | DL37: =DL38+DL72+DL87 -> 760348.36
A38: в том числе на выплаты персоналу, всего: | AR38: 210 | AX38: 210 | AY38: =CF38+CG38+DL38 -> 24346011 | CF38: =CF39 -> 21915000 | CG38: =CG39 -> 2431011 | DL38: =DL39 -> 0
A39: из них: оплата труда и начисления на выплаты по оплате труда | AR39: 211 | AS39: х | AT39: х | AU39: х | AV39: х | AW39: 111,119 | AX39: 211,213 | AY39: =CF39+CG39+DL39 -> 24346011 | CF39: =CF40+CF51 -> 21915000 | CG39: =CG40+CG51 -> 2431011 | DL39: =DL40+DL51+DL64 -> 0
A40: Заработная плата | AS40: х | AT40: х | AU40: х | AV40: х | AW40: 111 | AX40: 211 | AY40: =CF40+CG40+DL40 -> 18726602.73 | CF40: =CF41+CF42 -> 16842797 | CG40: =CG43+CG44+CG45+CG46+CG48+CG47+CG49+CG50 -> 1883805.73 | DL40: =DL50 -> 0
A41: Заработная плата | AS41: 07 | AT41: 02 | AU41: 0210060300 | AW41: 111 | AX41: 211 | AY41: =CF41 -> 11070908 | CF41: 11070908
A42: Заработная плата | AS42: 07 | AT42: 01 | AU42: 0210060350 | AW42: 111 | AX42: 211 | AY42: =CF42 -> 5771889 | CF42: 5771889
A43: Заработная плата | AS43: 07 | AT43: 09 | AU43: 0210060440 | AW43: 111 | AX43: 211 | AY43: =CG43 -> 639017 | CG43: 639017
A44: Заработная плата | AS44: 07 | AT44: 01 | AU44: 0210060450 | AW44: 111 | AX44: 211 | AY44: 14889 | CG44: 14889
A45: Заработная плата | AS45: 07 | AT45: 02 | AU45: 0210060450 | AW45: 111 | AX45: 211 | AY45: 36922 | CG45: 36922
A46: Заработная плата | AS46: 07 | AT46: 02 | AU46: 0210060530 | AW46: 111 | AX46: 211 | AY46: 367268 | CG46: 367268
A47: Заработная плата | AS47: 07 | AT47: 01 | AU47: 0210062580 | AW47: 111 | AX47: 211 | AY47: 645209.94 | CG47: 645209.94
A48: Заработная плата | AS48: 07 | AT48: 09 | AU48: 0210060520 | AW48: 111 | AX48: 211 | AY48: 124999.79 | CG48: 124999.79
A49: Заработная плата | AS49: 07 | AT49: 02 | AU49: 9070066770 | AW49: 111 | AX49: 211 | AY49: =DL49 -> 0 | CG49: 43500 | DL49: 0
A50: Заработная плата | AS50: 07 | AT50: 01 | AU50: 9070066780 | AW50: 111 | AX50: 211 | AY50: =DL50 -> 0 | CG50: 12000 | DL50: 0
A51: Начисления на выплаты по оплате труда | AS51: х | AT51: х | AU51: х | AV51: х | AW51: 119 | AX51: 213 | AY51: =CF51+CG51+DL51 -> 5619408.27 | CF51: =CF52+CF53 -> 5072203 | CG51: =CG54+CG55+CG56+CG57+CG58+CG59+CG60+CG61 -> 547205.27 | DL51: =DL61 -> 0
A52: Начисления на выплаты по оплате труда | AS52: 07 | AT52: 02 | AU52: 0210060300 | AW52: 119 | AX52: 213 | AY52: =CF52 -> 3329092 | CF52: 3329092
A53: Начисления на выплаты по оплате труда | AS53: 07 | AT53: 01 | AU53: 0210060350 | AW53: 119 | AX53: 213 | AY53: =CF53 -> 1743111 | CF53: 1743111
A54: Начисления на выплаты по оплате труда | AS54: 07 | AT54: 09 | AU54: 0210060440 | AW54: 119 | AX54: 213 | AY54: =CG54 -> 192983 | CG54: 192983
A55: Начисления на выплаты по оплате труда | AS55: 07 | AT55: 01 | AU55: 0210060450 | AW55: 119 | AX55: 213 | AY55: 5111 | CG55: 5111
A56: Начисления на выплаты по оплате труда | AS56: 07 | AT56: 02 | AU56: 0210060450 | AW56: 119 | AX56: 213 | AY56: 11078 | CG56: 11078
A57: Начисления на выплаты по оплате труда | AS57: 07 | AT57: 02 | AU57: 0210060530 | AW57: 119 | AX57: 213 | AY57: 110732 | CG57: 110732
A58: Начисления на выплаты по оплате труда | AS58: 07 | AT58: 01 | AU58: 0210062580 | AW58: 119 | AX58: 213 | AY58: 172790.06 | CG58: 172790.06
A59: Начисления на выплаты по оплате труда | AS59: 07 | AT59: 09 | AU59: 0210060520 | AW59: 119 | AX59: 213 | AY59: 37750.21 | CG59: 37750.21
A60: Начисления на выплаты по оплате труда | AS60: 07 | AT60: 01 | AU60: 9070066780 | AW60: 119 | AX60: 213 | AY60: =DL60 -> 0 | CG60: 3624 | DL60: 0
A61: Начисления на выплаты по оплате труда | AS61: 07 | AT61: 02 | AU61: 9070066770 | AW61: 119 | AX61: 213 | AY61: =DL61 -> 0 | CG61: 13137 | DL61: 0
A62: Прочие выплаты | AR62: 212 | AS62: х | AT62: х | AU62: х | AV62: х | AW62: 112 | AX62: 212 | AY62: =AY63+AY64 -> 0 | CF62: =CF63+CF64 -> 0 | DL62: 0
A63: Прочие выплаты | AS63: 07 | AT63: 02 | AU63: 0210060300 | AW63: 112 | AX63: 212 | AY63: =CF63 -> 0 | DL63: 0
A64: Прочие выплаты | AS64: 07 | AT64: 01 | AU64: 0210060350 | AW64: 112 | AX64: 212 | AY64: =CF64 -> 0 | DL64: 0
A65: Социальные и иные выплаты населению, всего | AR65: 220 | AY65: =SUM(BQ65:DZ65) -> 45108 | CG65: =CG67 -> 45108
A66: из них: | AY66: 0
A67: Пособия по социальной помощи населению | AR67: 262 | AS67: 07 | AT67: 09 | AU67: 0210060310 | AW67: 360 | AX67: 262 | AY67: 45108 | CG67: 45108
A68: Начисления на пособие | AY68: 0
A69: Пенсии, пособия, выплачиваемые организациями | AY69: 0
A70: Прочие расходы | AY70: 0
A71: Прочие расходы | AY71: 0
A72: Уплата налогов, сборов и иных платежей, всего | AR72: 230 | AS72: х | AT72: х | AU72: х | AV72: х | AW72: х | AX72: х | AY72: =CG72+DL72+CF72 -> 65776 | CF72: =CF74+CF75+CF76+CF77+CF79 -> 0 | CG72: =CG77+CG75 -> 23326 | DL72: =DL75+DL76+DL79+DL78 -> 42450
A73: из них | AY73: =SUM(BQ73:DZ73) -> 0
A74: на уплату сборов по исполнению судебных актов и соглашений по возмещению аренды и т.д. | AY74: =SUM(BQ74:DZ74) -> 0
A75: уплата налогов на имущество организаций и земельного налога | AS75: 07 | AT75: 02 | AU75: 0210060300 | AW75: 851 | AX75: 291 | AY75: =SUM(BQ75:DZ75) -> 16326 | CF75: 0 | CG75: 16326 | DL75: 0
A76: уплата прочих налогов, сборов | AS76: 00 | AT76: 00 | AU76: 0000000000 | AW76: 852 | AX76: 291 | AY76: =DL76 -> 1941 | CG76: 0 | DL76: 1941
A77: уплата прочих налогов, сборов | AS77: 07 | AT77: 09 | AU77: 0210060440 | AW77: 852 | AX77: 291 | AY77: =CG77 -> 7000 | CG77: 7000
A78: уплата иных платежей | AS78: 00 | AT78: 00 | AU78: 0000000000 | AW78: 853 | AX78: 292 | AY78: =DL78 -> 40509 | CG78: 0 | DL78: 40509
A79: уплата иных платежей | AS79: 00 | AT79: 00 | AU79: 0000000000 | AW79: 853 | AX79: 295 | AY79: =DL79 -> 0 | CG79: 0 | DL79: 0
A80: Безвозмездные перечисления организациям, всего | AR80: 240 | AY80: =SUM(BQ80:DZ80) -> 0
A81: из них | AY81: 0
A82: Безвозмездные перечисления государственным и муниципальным организациям | AY82: 0
A83: Безвозмездные перечисления организациям, за исключением государственных и муниципальных организаций | AY83: 0
A84: Прочие расходы (кроме расходов на закупку товаров, работ, услуг) | AR84: 250 | AY84: 0
A85: из них | AY85: 0
A86: Прочие расходы | AY86: 0
A87: Расходы на закупку товаров, работ, услуг, всего | AR87: 260 | AS87: х | AT87: х | AU87: х | AV87: х | AW87: х | AX87: х | AY87: =CF87+CG87+DL87 -> 2518270.36 | CF87: =CF89+CF97+CF99+CF108 -> 579000 | CG87: =CG89+CG97+CG99+CG108+CG96 -> 1221372 | DL87: =DL89+DL97+DL99+DL108 -> 717898.36
A88: из них | AY88: =SUM(BQ88:DZ88) -> 0
A89: Услуги связи | AS89: х | AT89: х | AU89: х | AV89: х | AW89: 244 | AX89: 221 | AY89: =CF89+CG89+DL89 -> 107122.17 | CF89: =CF90+CF91 -> 29795.37 | CG89: =CG92 -> 76641 | DL89: =DL93 -> 685.8
A90: Услуги связи | AS90: 07 | AT90: 02 | AU90: 0210060300 | AW90: 244 | AX90: 221 | AY90: =CF90 -> 27795.37 | CF90: 27795.37
A91: Услуги связи | AS91: 07 | AT91: 01 | AU91: 0210060350 | AW91: 244 | AX91: 221 | AY91: =CF91 -> 2000 | CF91: 2000
A92: Услуги связи | AS92: 07 | AT92: 09 | AU92: 0210060340 | AW92: 244 | AX92: 221 | AY92: =CG92 -> 76641 | CG92: 76641
A93: Услуги связи | AS93: 00 | AT93: 00 | AU93: 0000000000 | AW93: 244 | AX93: 221 | AY93: =DL93 -> 685.8 | DL93: 685.8
A94: Транспортные услуги | AY94: =SUM(BQ94:DZ94) -> 0
A95: Коммунальные услуги | AY95: =SUM(BQ95:DZ95) -> 0
A96: Арендная плата за пользование имуществом | AS96: 07 | AT96: 09 | AU96: 0210060440 | AW96: 244 | AX96: 224 | AY96: =SUM(BQ96:DZ96) -> 39600 | CG96: 39600
A97: Услуги по содержанию имущества | AS97: х | AT97: х | AU97: х | AV97: х | AW97: 244 | AX97: 225 | AY97: =CF97+CG97+DL97 -> 80000 | CG97: =CG98 -> 80000
A98: Услуги по содержанию имущества | AS98: 07 | AT98: 09 | AU98: 0210060440 | AW98: 244 | AX98: 225 | AY98: =CG98 -> 80000 | CG98: 80000
A99: Прочие работы, услуги | AS99: х | AT99: х | AU99: х | AV99: х | AW99: 244 | AX99: 226 | AY99: =CF99+CG99+DL99 -> 717148.68 | CF99: =CF102+CF107+CF105 -> 131789.08 | CG99: =CG100+CG101+CG102+CG104+CG107+CG103+CG106 -> 492045.4 | DL99: =DL101 -> 93314.2
A100: Прочие работы, услуги | AS100: 07 | AT100: 09 | AU100: 0210060440 | AW100: 244 | AX100: 226 | AY100: =CG100 -> 78988.4 | CG100: 78988.4
A101: Прочие работы, услуги | AU101: 0000000000 | AW101: 244 | AX101: 226 | AY101: =DL101 -> 93314.2 | CG101: 0 | DL101: 93314.2
A102: Прочие работы, услуги | AS102: 07 | AT102: 02 | AU102: 0210060300 | AW102: 244 | AX102: 226 | AY102: =CF102 -> 100789.08 | CF102: 100789.08 | CG102: 0
A103: Прочие работы, услуги | AS103: 07 | AT103: 09 | AU103: 9070065730 | AW103: 244 | AX103: 226 | AY103: =CG103 -> 296360 | CG103: 296360
A104: Прочие работы, услуги | AS104: 07 | AT104: 09 | AU104: 0210060340 | AW104: 244 | AX104: 226 | AY104: =CG104 -> 3000 | CG104: 3000
A105: Прочие расходы,услуги | AS105: 07 | AT105: 01 | AU105: 0210060350 | AW105: 244 | AX105: 226 | AY105: =CF105 -> 31000 | CF105: 31000 | CG105: 0
A106: Прочие расходы,услуги | AS106: 07 | AT106: 07 | AU106: 4120065900 | AW106: 244 | AX106: 226 | AY106: =CF106 -> 0 | CG106: 113697
A107: Прочие расходы,услуги | AS107: 07 | AT107: 09 | AU107: 230065610 | AW107: 244 | AX107: 226 | AY107: =CF107 -> 0 | CG107: 0
A108: Увеличение стоимости материальных запасов | AS108: х | AT108: х | AU108: х | AV108: х | AW108: 244 | AX108: 340 | AY108: =CF108+CG108+DL108 -> 1574399.51 | CF108: =CF110+CF111 -> 417415.55 | CG108: =CG109+CG113+CG112 -> 533085.6 | DL108: =DL114 -> 623898.36
A109: Увеличение стоимости материальных запасов | AS109: 07 | AT109: 09 | AU109: 0210060440 | AW109: 244 | AX109: 340 | AY109: =CG109 -> 338085.6 | CG109: 338085.6
A110: Увеличение стоимости материальных запасов | AS110: 07 | AT110: 02 | AU110: 0210060300 | AW110: 244 | AX110: 340 | AY110: =CF110 -> 120415.55 | CF110: 120415.55
A111: Увеличение стоимости материальных запасов | AS111: 07 | AT111: 01 | AU111: 0210060350 | AW111: 244 | AX111: 340 | AY111: =CF111 -> 297000 | CF111: 297000
A112: Увеличение стоимости материальных запасов | AS112: 07 | AT112: 01 | AU112: 0210060410 | AW112: 244 | AX112: 340 | AY112: =CG112 -> 195000 | CG112: 195000
A113: Увеличение стоимости материальных запасов | AS113: 07 | AT113: 01 | AU113: 0210060310 | AW113: 244 | AX113: 340 | AY113: =CG113 -> 0
A114: Увеличение стоимости материальных запасов | AS114: 00 | AT114: 00 | AU114: 0000000000 | AW114: 244 | AX114: 340 | AY114: =DL114 -> 623898.36 | DL114: 623898.36
A115: Поступление финансовых активов, всего | AR115: 300 | AS115: х | AT115: х | AU115: х | AV115: х | AW115: х | AX115: х | AY115: =CF115+CG115+DL115 -> 26973165.36 | CF115: 22494000 | CG115: 3720817 | DL115: 758348.36
A116: из них: | AS116: х | AT116: х | AU116: х | AY116: =SUM(BQ116:DZ116) -> 0 | CF116: 0,00 | CG116: 0,00 | DL116: 0,00
A117: увеличение остатков средств | AR117: 310 | AS117: х | AT117: х | AU117: х | AX117: х | AY117: =CF117+CG117+DL117 -> 26973165.36 | CF117: 22494000 | CG117: 3720817 | DL117: 758348.36
A118: прочие поступления | AR118: 320 | AS118: х | AT118: х | AU118: х | AY118: =SUM(BQ118:DZ118) -> 0 | CF118: 0 | CG118: 0 | DL118: 0,00
A119: Выбытие финансовых активов, всего | AR119: 400 | AS119: х | AT119: х | AU119: х | AV119: х | AW119: х | AX119: х | AY119: =CF119+CG119+DL119 -> 26975165.36 | CF119: 22494000 | CG119: 3720817 | DL119: 760348.36
A120: из них: | AS120: х | AT120: х | AU120: х | AY120: =SUM(BQ120:DZ120) -> 0 | CF120: 0 | CG120: 0 | DL120: 0,00
A121: уменьшение остатков средств | AR121: 410 | AS121: х | AT121: х | AU121: х | AX121: х | AY121: =CF121+CG121+DL121 -> 26975165.36 | CF121: 22494000 | CG121: 3720817 | DL121: 760348.36
A122: прочие выбытие | AR122: 420 | AS122: х | AT122: х | AU122: х
A123: Остаток средств на начало года | AR123: 500 | AS123: х | AT123: х | AU123: х | AV123: х | AW123: х | AX123: х | AY123: 2000 | CF123: х | CG123: х | DL123: 2000
A124: Остаток средств на конец года | AR124: 600 | AS124: х | AT124: х | AU124: х | AV124: х | AW124: х | AX124: х | AY124: =CF124+CG124+DL124 -> 0 | DL124: 0
A126: По строкам 500, 600 в графах 5 - 12 указываются планируемые суммы остатков средств на начало и на конец планируемого года либо указываются фактические остатки средств при внесении изменений в утвержденный план после завершения отчетного финансового года;
A128: в графе 3 по строкам 110 - 180, 300 - 420 указываются коды классификации сектора государственного управления, по строкам 210 - 280 указываются коды видов расходов бюджетов;
A130: по строке 120 в графе 12 указываются плановые показатели по доходам от грантов, предоставление которых из соответствующего бюджета бюджетной системы Российской Федерации осуществляется по кодам 613 "Гранты в Форме субсидии бюджетным учреждениям" или 623 "Гранты в Форме субсидии автономным учреждениям" видов расходов бюджетов.

Sheet 2
CF2: Таблица 1
A3: II. Показатели финансового состояния государственного учреждения
A5: Наименование показателя | BU5: Сумма
B6: I. Нефинансовые активы, всего: | BU6: 7118244.86
B7: из них: | BU7: 0
B8: Общая балансовая стоимость недвижимого государственного имущества, всего | BU8: 0
B9: в том числе: | BU9: 0
B10: недвижимого имущество, всего | BU10: 0
B11: в том числе: | BU11: 0
B12: остаточная стоимость | BU12: 0
B13: особо ценное движимое имущество, всего | BU13: 2929600
B14: в том числе: | BU14: 0 | EJ14: 69
B15: остаточная стоимость | BU15: 0
B16: II. Финансовые активы, всего | BU16: 2000
B17: из них: | BU17: 0
B18: денежные средства учреждения, всего | BU18: 2000
B19: в том числе: | BU19: 0
B20: денежные средства учреждения на счетах | BU20: 2000
B21: денежные средства учреждения, размещенные на депозиты в кредитной организации | BU21: 0
B22: в том числе: | BU22: 0
B23: дебиторская задолженность по доходам | BU23: 0
B24: дебиторская задолженность по расходам | BU24: 0
B25: III. Обязательства, всего | BU25: 0
B26: из них: | BU26: 0
B27: долговые обязательства | BU27: 0
B28: кредиторская задолженность | BU28: 0
B29: в том числе: | BU29: 0
B30: просроченная кредиторская задолженность | BU30: 0

Sheet 2.1_2
DO2: Таблица 2
A4: III. Показатели по поступлениям и выплатам государственного учреждения
A6: Наименование показателя | AR6: Код строки | AS6: Коды бюджетной классификации Российской федерации | AX6: Код дополнительной классификации | AY6: Объем финансового обеспечения, руб. (с точностью до двух знаков после запятой - 0,00)
AY7: 2019 год (1 год планового периода)
AY8: Всего | BQ8: в том числе
BQ9: средства областного бюджета, поступающие из федерального бюджета | CF9: субсидии на финансовое обеспечение выполнения государственного задания | CG9: субсидии, предоставляемые в соответствии с абзацем пункта 1 статьи 78.1 Бюджетного кодекса Российской Федерации (целевые субсидии) | CH9: субсидии на осуществление капитальных вложений | CW9: средства обязательного медицинского страхования | DL9: поступления от оказания услуг (выполнения работ) на платной основе и от иной приносящей доход деятельности
AS10: Код раздела | AT10: Код подраздела | AU10: Код целевой статьи расходов | AV10: Код операций сектора государственного управления (для поступрений) | AW10: Код вида расходов (для выплат) | AX10: Код экономической классификации расходов | DL10: всего | EA10: из них гранты
A11: 1 | AR11: 2 | AS11: 3 | AT11: 4 | AU11: 5 | AV11: 6 | AW11: 7 | AX11: 8 | AY11: 9 | BQ11: 10 | CF11: 11 | CG11: 12 | CH11: 13 | CW11: 14 | DL11: 15 | EB11: 16
A12: Поступления, всего: | AR12: 100 | AS12: х | AT12: х | AU12: х | AV12: х | AW12: х | AX12: х | AY12: =CF12+CG12+DL12 -> 25410898.36 | CF12: =CF15 -> 21631000 | CG12: =CG21 -> 3057000 | DL12: =DL15 -> 722898.36
A13: в том числе: | AW13: х | AX13: х | AY13: =SUM(BQ13:DZ13) -> 0
A14: доходы от собственности (сдача в аренду государственного недвижимого имущества и прочее) | AR14: 110 | AW14: х | AX14: х | AY14: =SUM(BQ14:DZ14) -> 0 | BQ14: х | CF14: х | CG14: х | CH14: х | CW14: х | EB14: х
A15: доходы от оказания услуг, работ | AR15: 120 | AV15: 130 | AW15: х | AX15: х | AY15: =CF15+DL15 -> 22353898.36 | CF15: =CF16+CF17 -> 21631000 | CG15: х | CH15: х | DL15: =DL19+DL18 -> 722898.36
A16: доходы от оказания услуг, работ | AS16: 07 | AT16: 02 | AU16: 0210060300 | AV16: 130 | AW16: х | AX16: х | AY16: =CF16 -> 14499000 | CF16: 14499000
A17: доходы от оказания услуг, работ | AS17: 07 | AT17: 01 | AU17: 0210060350 | AV17: 130 | AW17: х | AX17: х | AY17: =CF17 -> 7132000 | CF17: 7132000
A18: доходы от оказания услуг, работ | AS18: 00 | AT18: 00 | AU18: 0000000000 | AV18: 130 | AW18: х | AX18: х | AY18: =DL18 -> 722898.36 | DL18: 722898.36
A19: доходы от оказания услуг, работ | AS19: 00 | AT19: 00 | AU19: 0000000000 | AV19: 180 | AW19: х | AX19: х | AY19: =DL19 -> 0
A20: доходы от штрафов, пеней, иных сумм принудительного изъятия | AR20: 130 | AW20: х | AX20: х | AY20: =SUM(BQ20:DZ20) -> 0 | BQ20: х | CF20: х | CG20: х | CH20: х | CW20: х | EB20: х
A21: целевые субсидии, предоставленные из бюджета | AR21: 150 | AV21: 180 | AW21: х | AX21: х | AY21: =CG21 -> 3057000 | CF21: х | CG21: =CG22+CG23+CG24+CG25+CG26+CG27+CG28+CG31+CG29 -> 3057000 | CW21: х | DL21: х | EI21: х
A22: целевые субсидии, предоставленные из бюджета | AS22: 07 | AT22: 09 | AU22: 0210060340 | AV22: 180 | AW22: х | AX22: х | AY22: 0 | CF22: х | CG22: 0 | CW22: х | DL22: х | EI22: х
A23: целевые субсидии, предоставленные из бюджета | AS23: 07 | AT23: 09 | AU23: 0210060440 | AV23: 180 | AW23: х | AX23: х | AY23: 1384000 | CG23: 1384000
A24: целевые субсидии, предоставленные из бюджета | AS24: 07 | AT24: 01 | AU24: 0210060410 | AV24: 180 | AW24: х | AX24: х | AY24: 194000 | CG24: 194000
A25: целевые субсидии, предоставленные из бюджета | AS25: 07 | AT25: 01 | AU25: 0210060450 | AV25: 180 | AW25: х | AX25: х | AY25: 22000 | CG25: 22000
A26: целевые субсидии, предоставленные из бюджета | AS26: 07 | AT26: 02 | AU26: 0210060450 | AV26: 180 | AW26: х | AX26: х | AY26: 48000 | CG26: 48000
A27: целевые субсидии, предоставленные из бюджета | AS27: 07 | AT27: 02 | AU27: 210060530 | AV27: 180 | AW27: х | AX27: х | AY27: 487000 | CG27: 487000
A28: целевые субсидии, предоставленные из бюджета | AS28: 07 | AT28: 01 | AU28: 210062580 | AV28: 180 | AW28: х | AX28: х | AY28: 876000 | CG28: 876000
A29: целевые субсидии, предоставленные из бюджета | AS29: 07 | AT29: 09 | AU29: 210060520 | AV29: 180 | AW29: х | AX29: х | AY29: 0
A30: целевые субсидии, предоставленные из бюджета | AS30: 07 | AT30: 09 | AU30: 210060340 | AV30: 180 | AW30: х | AX30: х | AY30: 0
A31: целевые субсидии, предоставленные из бюджета | AS31: 07 | AT31: 09 | AU31: 210060310 | AV31: 180 | AW31: х | AX31: х | AY31: 46000 | CG31: 46000
A32: прочие доходы | AR32: 160 | AW32: х | AX32: х | AY32: =SUM(BQ32:DZ32) -> 0 | BQ32: х | CF32: х | CG32: х | CH32: х | CW32: х
A33: доходы от операций с активами, в том числе | AR33: 180 | AW33: х | AX33: х | AY33: =SUM(BQ33:DZ33) -> 0 | BQ33: х | CF33: х | CG33: х | CH33: х | CW33: х | EA33: х | EB33: х
A34: от реализации основных средств | AW34: х | AX34: х | AY34: =SUM(BQ34:DZ34) -> 0 | BQ34: х | CF34: х | CG34: х | CH34: х | CW34: х
A35: от реализации материальных запасов | AW35: х | AX35: х | AY35: =SUM(BQ35:DZ35) -> 0 | BQ35: х | CF35: х | CG35: х | CH35: х | CW35: х
A36: Расходы, всего: | AR36: 200 | AS36: х | AT36: х | AU36: х | AV36: х | AW36: х | AX36: х | AY36: =CF36+CG36+DL36 -> 25410898.36 | CF36: =CF37+CF83+CF59+CF69 -> 21631000 | CG36: =CG37+CG69+CG83+CG62 -> 3057000 | DL36: =DL37+DL69+DL83 -> 722898.36
A37: в том числе на выплаты персоналу, всего: | AR37: 210 | AX37: 210 | AY37: =CF37+CG37+DL37 -> 23314000 | CF37: =CF38 -> 21057000 | CG37: =CG38 -> 2257000 | DL37: =DL38 -> 0
A38: из них: оплата труда и начисления на выплаты по оплате труда | AR38: 211 | AS38: х | AT38: х | AU38: х | AV38: х | AW38: 111,119 | AX38: 211,213 | AY38: =CF38+CG38+DL38 -> 23314000 | CF38: =CF39+CF49 -> 21057000 | CG38: =CG39+CG49 -> 2257000 | DL38: =DL39+DL49+DL61 -> 0
A39: Заработная плата | AS39: х | AT39: х | AU39: х | AV39: х | AW39: 111 | AX39: 211 | AY39: =CF39+CG39+DL39 -> 17906300 | CF39: =CF40+CF41 -> 16172813 | CG39: =CG42+CG43+CG44+CG45+CG47+CG46 -> 1733487 | DL39: =DL48 -> 0
A40: Заработная плата | AS40: 07 | AT40: 02 | AU40: 0210060300 | AW40: 111 | AX40: 211 | AY40: =CF40 -> 10945470 | CF40: 10945470
A41: Заработная плата | AS41: 07 | AT41: 01 | AU41: 0210060350 | AW41: 111 | AX41: 211 | AY41: =CF41 -> 5227343 | CF41: 5227343
A42: Заработная плата | AS42: 07 | AT42: 09 | AU42: 0210060440 | AW42: 111 | AX42: 211 | AY42: =CG42 -> 632873 | CG42: 632873
A43: Заработная плата | AS43: 07 | AT43: 01 | AU43: 0210060450 | AW43: 111 | AX43: 211 | AY43: 16897 | CG43: 16897
A44: Заработная плата | AS44: 07 | AT44: 02 | AU44: 0210060450 | AW44: 111 | AX44: 211 | AY44: 36866 | CG44: 36866
A45: Заработная плата | AS45: 07 | AT45: 02 | AU45: 0210060530 | AW45: 111 | AX45: 211 | AY45: 374040 | CG45: 374040
A46: Заработная плата | AS46: 07 | AT46: 01 | AU46: 0210062580 | AW46: 111 | AX46: 211 | AY46: 672811 | CG46: 672811
A47: Заработная плата | AS47: 07 | AT47: 09 | AU47: 0210060520 | AW47: 111 | AX47: 211 | AY47: 0
A48: Заработная плата | AS48: 00 | AT48: 00 | AU48: 0000000000 | AW48: 111 | AX48: 211 | AY48: =DL48 -> 0 | DL48: 0
A49: Начисления на выплаты по оплате труда | AS49: х | AT49: х | AU49: х | AV49: х | AW49: 119 | AX49: 213 | AY49: =CF49+CG49+DL49 -> 5407700 | CF49: =CF50+CF51 -> 4884187 | CG49: =CG52+CG53+CG54+CG55+CG56+CG57 -> 523513 | DL49: =DL58 -> 0
A50: Начисления на выплаты по оплате труда | AS50: 07 | AT50: 02 | AU50: 0210060300 | AW50: 119 | AX50: 213 | AY50: =CF50 -> 3305530 | CF50: 3305530
A51: Начисления на выплаты по оплате труда | AS51: 07 | AT51: 01 | AU51: 0210060350 | AW51: 119 | AX51: 213 | AY51: =CF51 -> 1578657 | CF51: 1578657
A52: Начисления на выплаты по оплате труда | AS52: 07 | AT52: 09 | AU52: 0210060440 | AW52: 119 | AX52: 213 | AY52: =CG52 -> 191127 | CG52: 191127
A53: Начисления на выплаты по оплате труда | AS53: 07 | AT53: 01 | AU53: 0210060450 | AW53: 119 | AX53: 213 | AY53: 5103 | CG53: 5103
A54: Начисления на выплаты по оплате труда | AS54: 07 | AT54: 02 | AU54: 0210060450 | AW54: 119 | AX54: 213 | AY54: 11134 | CG54: 11134
A55: Начисления на выплаты по оплате труда | AS55: 07 | AT55: 02 | AU55: 0210060530 | AW55: 119 | AX55: 213 | AY55: 112960 | CG55: 112960
A56: Начисления на выплаты по оплате труда | AS56: 07 | AT56: 01 | AU56: 0210062580 | AW56: 119 | AX56: 213 | AY56: 203189 | CG56: 203189
A57: Начисления на выплаты по оплате труда | AS57: 07 | AT57: 09 | AU57: 0210060520 | AW57: 119 | AX57: 213 | AY57: 0
A58: Начисления на выплаты по оплате труда | AS58: 00 | AT58: 00 | AU58: 0000000000 | AW58: 119 | AX58: 213 | AY58: =DL58 -> 0 | DL58: 0
A59: Прочие выплаты | AR59: 212 | AS59: х | AT59: х | AU59: х | AV59: х | AW59: 112 | AX59: 212 | AY59: =AY60+AY61 -> 0 | CF59: =CF60+CF61 -> 0 | DL59: 0
A60: Прочие выплаты | AS60: 07 | AT60: 02 | AU60: 0210060300 | AW60: 112 | AX60: 212 | AY60: =CF60 -> 0 | DL60: 0
A61: Прочие выплаты | AS61: 07 | AT61: 01 | AU61: 0210060350 | AW61: 112 | AX61: 212 | AY61: =CF61 -> 0 | DL61: 0
A62: Социальные и иные выплаты населению, всего | AR62: 220 | AY62: =SUM(BQ62:DZ62) -> 46000 | CG62: =CG64 -> 46000
A63: из них: | AY63: 0
A64: Пособия по социальной помощи населению | AR64: 262 | AS64: 07 | AT64: 09 | AU64: 0210060310 | AW64: 360 | AX64: 262 | AY64: 46000 | CG64: 46000
A65: Начисления на пособие | AY65: 0
A66: Пенсии, пособия, выплачиваемые организациями | AY66: 0
A67: Прочие расходы | AY67: 0
A68: Прочие расходы | AY68: 0
A69: Уплата налогов, сборов и иных платежей, всего | AR69: 230 | AS69: х | AT69: х | AU69: х | AV69: х | AW69: х | AX69: х | AY69: =CG69+DL69+CF69 -> 36000 | CF69: =CF71+CF72+CF73+CF74+CF75 -> 0 | CG69: =CG74+CG72 -> 29000 | DL69: =DL72+DL73+DL75 -> 7000
A70: из них | AY70: =SUM(BQ70:DZ70) -> 0
A71: на уплату сборов по исполнению судебных актов и соглашений по возмещению аренды и т.д. | AY71: =SUM(BQ71:DZ71) -> 0
A72: уплата налогов на имущество организаций и земельного налога | AS72: 07 | AT72: 02 | AU72: 0210060300 | AW72: 851 | AX72: 290 | AY72: =SUM(BQ72:DZ72) -> 22000 | CG72: 22000 | DL72: 0
A73: уплата прочих налогов, сборов | AS73: 00 | AT73: 00 | AU73: 0000000000 | AW73: 852 | AX73: 290 | AY73: =DL73 -> 500 | CG73: 0 | DL73: 500
A74: уплата прочих налогов, сборов | AS74: 07 | AT74: 09 | AU74: 0210060440 | AW74: 852 | AX74: 290 | AY74: =CG74 -> 7000 | CG74: 7000
A75: уплата иных платежей | AS75: 00 | AT75: 00 | AU75: 0000000000 | AW75: 853 | AX75: 290 | AY75: =DL75 -> 6500 | CG75: 0 | DL75: 6500
A76: Безвозмездные перечисления организациям, всего | AR76: 240 | AY76: =SUM(BQ76:DZ76) -> 0
A77: из них | AY77: 0
A78: Безвозмездные перечисления государственным и муниципальным организациям | AY78: 0
A79: Безвозмездные перечисления организациям, за исключением государственных и муниципальных организаций | AY79: 0
A80: Прочие расходы (кроме расходов на закупку товаров, работ, услуг) | AR80: 250 | AY80: 0
A81: из них | AY81: 0
A82: Прочие расходы | AY82: 0
A83: Расходы на закупку товаров, работ, услуг, всего | AR83: 260 | AS83: х | AT83: х | AU83: х | AV83: х | AW83: х | AX83: х | AY83: =CF83+CG83+DL83 -> 2014898.36 | CF83: =CF85+CF93+CF95+CF101 -> 574000 | CG83: =CG85+CG93+CG95+CG101+CG92 -> 725000 | DL83: =DL85+DL93+DL95+DL101 -> 715898.36
A84: из них | AY84: =SUM(BQ84:DZ84) -> 0
A85: Услуги связи | AS85: х | AT85: х | AU85: х | AV85: х | AW85: 244 | AX85: 221 | AY85: =CF85+CG85+DL85 -> 38000 | CF85: =CF86+CF87 -> 38000 | CG85: =CG88 -> 0 | DL85: =DL89 -> 0
A86: Услуги связи | AS86: 07 | AT86: 02 | AU86: 0210060300 | AW86: 244 | AX86: 221 | AY86: =CF86 -> 35000 | CF86: 35000
A87: Услуги связи | AS87: 07 | AT87: 01 | AU87: 0210060350 | AW87: 244 | AX87: 221 | AY87: =CF87 -> 3000 | CF87: 3000
A88: Услуги связи | AS88: 07 | AT88: 09 | AU88: 0210060340 | AW88: 244 | AX88: 221 | AY88: =CG88 -> 0
A89: Услуги связи | AS89: 00 | AT89: 00 | AU89: 0000000000 | AW89: 244 | AX89: 221 | AY89: =DL89 -> 0
A90: Транспортные услуги | AY90: =SUM(BQ90:DZ90) -> 0
A91: Коммунальные услуги | AY91: =SUM(BQ91:DZ91) -> 0
A92: Арендная плата за пользование имуществом | AS92: 07 | AT92: 09 | AU92: 0210060440 | AW92: 244 | AX92: 224 | AY92: =SUM(BQ92:DZ92) -> 39600 | CG92: 39600
A93: Услуги по содержанию имущества | AS93: х | AT93: х | AU93: х | AV93: х | AW93: 244 | AX93: 225 | AY93: =CF93+CG93+DL93 -> 80000 | CG93: =CG94 -> 80000
A94: Услуги по содержанию имущества | AS94: 07 | AT94: 09 | AU94: 0210060440 | AW94: 244 | AX94: 225 | AY94: =CG94 -> 80000 | CG94: 80000
A95: Прочие работы, услуги | AS95: х | AT95: х | AU95: х | AV95: х | AW95: 244 | AX95: 226 | AY95: =CF95+CG95+DL95 -> 289000 | CF95: =CF98+CF100 -> 119000 | CG95: =CG96+CG97+CG98+CG99+CG100 -> 76000 | DL95: =DL97 -> 94000
A96: Прочие работы, услуги | AS96: 07 | AT96: 09 | AU96: 0210060440 | AW96: 244 | AX96: 226 | AY96: =CG96 -> 76000 | CG96: 76000
A97: Прочие работы, услуги | AU97: 0000000000 | AW97: 244 | AX97: 226 | AY97: =DL97 -> 94000 | CG97: 0 | DL97: 94000
A98: Прочие работы, услуги | AS98: 07 | AT98: 02 | AU98: 0210060300 | AW98: 244 | AX98: 226 | AY98: =CF98 -> 90000 | CF98: 90000 | CG98: 0
A99: Прочие работы, услуги | AS99: 07 | AT99: 09 | AU99: 0210060340 | AW99: 244 | AX99: 226 | AY99: =CG99 -> 0
A100: Прочие расходы,услуги | AS100: 07 | AT100: 01 | AU100: 0210060350 | AW100: 244 | AX100: 226 | AY100: =CF100 -> 29000 | CF100: 29000 | CG100: 0
A101: Увеличение стоимости материальных запасов | AS101: х | AT101: х | AU101: х | AV101: х | AW101: 244 | AX101: 340 | AY101: =CF101+CG101+DL101 -> 1568298.36 | CF101: =CF103+CF104 -> 417000 | CG101: =CG102+CG106+CG105 -> 529400 | DL101: =DL107 -> 621898.36
A102: Увеличение стоимости материальных запасов | AS102: 07 | AT102: 09 | AU102: 0210060440 | AW102: 244 | AX102: 340 | AY102: =CG102 -> 335400 | CG102: 335400
A103: Увеличение стоимости материальных запасов | AS103: 07 | AT103: 02 | AU103: 0210060300 | AW103: 244 | AX103: 340 | AY103: =CF103 -> 123000 | CF103: 123000
A104: Увеличение стоимости материальных запасов | AS104: 07 | AT104: 01 | AU104: 0210060350 | AW104: 244 | AX104: 340 | AY104: =CF104 -> 294000 | CF104: 294000
A105: Увеличение стоимости материальных запасов | AW105: 244 | AX105: 340 | AY105: =CG105 -> 0
A106: Увеличение стоимости материальных запасов | AS106: 07 | AT106: 01 | AU106: 0210060410 | AW106: 244 | AX106: 340 | AY106: =CG106 -> 194000 | CG106: 194000
A107: Увеличение стоимости материальных запасов | AS107: 00 | AT107: 00 | AU107: 0000000000 | AW107: 244 | AX107: 340 | AY107: =DL107 -> 621898.36 | DL107: 621898.36
A108: Поступление финансовых активов, всего | AR108: 300 | AS108: х | AT108: х | AU108: х | AV108: х | AW108: х | AX108: х | AY108: =CF108+CG108+DL108 -> 25410898.36 | CF108: 21631000 | CG108: 3057000 | DL108: 722898.36
A109: из них: | AS109: х | AT109: х | AU109: х | AY109: =SUM(BQ109:DZ109) -> 0 | CF109: 0,00 | CG109: 0,00 | DL109: 0,00
A110: увеличение остатков средств | AR110: 310 | AS110: х | AT110: х | AU110: х | AX110: х | AY110: =CF110+CG110+DL110 -> 25410898.36 | CF110: 21631000 | CG110: 3057000 | DL110: 722898.36
A111: прочие поступления | AR111: 320 | AS111: х | AT111: х | AU111: х | AY111: =SUM(BQ111:DZ111) -> 0 | CF111: 0 | CG111: 0 | DL111: 0,00
A112: Выбытие финансовых активов, всего | AR112: 400 | AS112: х | AT112: х | AU112: х | AV112: х | AW112: х | AX112: х | AY112: =CF112+CG112+DL112 -> 25410898.36 | CF112: 21631000 | CG112: 3057000 | DL112: 722898.36
A113: из них: | AS113: х | AT113: х | AU113: х | AY113: =SUM(BQ113:DZ113) -> 0 | CF113: 0 | CG113: 0 | DL113: 0,00
A114: уменьшение остатков средств | AR114: 410 | AS114: х | AT114: х | AU114: х | AX114: х | AY114: =CF114+CG114+DL114 -> 25410898.36 | CF114: 21631000 | CG114: 3057000 | DL114: 722898.36
A115: прочие выбытие | AR115: 420 | AS115: х | AT115: х | AU115: х
A116: Остаток средств на начало года | AR116: 500 | AS116: х | AT116: х | AU116: х | AV116: х | AW116: х | AX116: х | CF116: х | CG116: х
A117: Остаток средств на конец года | AR117: 600 | AS117: х | AT117: х | AU117: х | AV117: х | AW117: х | AX117: х | AY117: =CF117+CG117+DL117 -> 0 | DL117: 0
A119: По строкам 500, 600 в графах 5 - 12 указываются планируемые суммы остатков средств на начало и на конец планируемого года либо указываются фактические остатки средств при внесении изменений в утвержденный план после завершения отчетного финансового года;
A121: в графе 3 по строкам 110 - 180, 300 - 420 указываются коды классификации сектора государственного управления, по строкам 210 - 280 указываются коды видов расходов бюджетов;
A123: по строке 120 в графе 12 указываются плановые показатели по доходам от грантов, предоставление которых из соответствующего бюджета бюджетной системы Российской Федерации осуществляется по кодам 613 "Гранты в Форме субсидии бюджетным учреждениям" или 623 "Гранты в Форме субсидии автономным учреждениям" видов расходов бюджетов.

Sheet 2.1_2_2
DO2: Таблица 2
A4: III. Показатели по поступлениям и выплатам государственного учреждения
A6: Наименование показателя | AR6: Код строки | AS6: Коды бюджетной классификации Российской федерации | AX6: Код дополнительной классификации | AY6: Объем финансового обеспечения, руб. (с точностью до двух знаков после запятой - 0,00)
AY7: 2020 год (2 год планового периода)
AY8: Всего | BQ8: в том числе
BQ9: средства областного бюджета, поступающие из федерального бюджета | CF9: субсидии на финансовое обеспечение выполнения государственного задания | CG9: субсидии, предоставляемые в соответствии с абзацем пункта 1 статьи 78.1 Бюджетного кодекса Российской Федерации (целевые субсидии) | CH9: субсидии на осуществление капитальных вложений | CW9: средства обязательного медицинского страхования | DL9: поступления от оказания услуг (выполнения работ) на платной основе и от иной приносящей доход деятельности
AS10: Код раздела | AT10: Код подраздела | AU10: Код целевой статьи расходов | AV10: Код операций сектора государственного управления (для поступрений) | AW10: Код вида расходов (для выплат) | AX10: Код экономической классификации расходов | DL10: всего | EA10: из них гранты
A11: 1 | AR11: 2 | AS11: 3 | AT11: 4 | AU11: 5 | AV11: 6 | AW11: 7 | AX11: 8 | AY11: 9 | BQ11: 10 | CF11: 11 | CG11: 12 | CH11: 13 | CW11: 14 | DL11: 15 | EB11: 16
A12: Поступления, всего: | AR12: 100 | AS12: х | AT12: х | AU12: х | AV12: х | AW12: х | AX12: х | AY12: =CF12+CG12+DL12 -> 25806898.36 | CF12: =CF15 -> 22026000 | CG12: =CG21 -> 3058000 | DL12: =DL15 -> 722898.36
A13: в том числе: | AW13: х | AX13: х | AY13: =SUM(BQ13:DZ13) -> 0
A14: доходы от собственности (сдача в аренду государственного недвижимого имущества и прочее) | AR14: 110 | AW14: х | AX14: х | AY14: =SUM(BQ14:DZ14) -> 0 | BQ14: х | CF14: х | CG14: х | CH14: х | CW14: х | EB14: х
A15: доходы от оказания услуг, работ | AR15: 120 | AV15: 130 | AW15: х | AX15: х | AY15: =CF15+DL15 -> 22748898.36 | CF15: =CF16+CF17 -> 22026000 | CG15: х | CH15: х | DL15: =DL19+DL18 -> 722898.36
A16: доходы от оказания услуг, работ | AS16: 07 | AT16: 02 | AU16: 0210060300 | AV16: 130 | AW16: х | AX16: х | AY16: =CF16 -> 14882000 | CF16: 14882000
A17: доходы от оказания услуг, работ | AS17: 07 | AT17: 01 | AU17: 0210060350 | AV17: 130 | AW17: х | AX17: х | AY17: =CF17 -> 7144000 | CF17: 7144000
A18: доходы от оказания услуг, работ | AS18: 00 | AT18: 00 | AU18: 0000000000 | AV18: 130 | AW18: х | AX18: х | AY18: =DL18 -> 722898.36 | DL18: 722898.36
A19: доходы от оказания услуг, работ | AS19: 00 | AT19: 00 | AU19: 0000000000 | AV19: 180 | AW19: х | AX19: х | AY19: =DL19 -> 0
A20: доходы от штрафов, пеней, иных сумм принудительного изъятия | AR20: 130 | AW20: х | AX20: х | AY20: =SUM(BQ20:DZ20) -> 0 | BQ20: х | CF20: х | CG20: х | CH20: х | CW20: х | EB20: х
A21: целевые субсидии, предоставленные из бюджета | AR21: 150 | AV21: 180 | AW21: х | AX21: х | AY21: =CG21 -> 3058000 | CF21: х | CG21: =CG22+CG23+CG24+CG25+CG26+CG27+CG28+CG31+CG30 -> 3058000 | CW21: х | DL21: х | EI21: х
A22: целевые субсидии, предоставленные из бюджета | AS22: 07 | AT22: 09 | AU22: 0210060340 | AV22: 180 | AW22: х | AX22: х | AY22: 0 | CF22: х | CG22: 0 | CW22: х | DL22: х | EI22: х
A23: целевые субсидии, предоставленные из бюджета | AS23: 07 | AT23: 09 | AU23: 0210060440 | AV23: 180 | AW23: х | AX23: х | AY23: 1384000 | CG23: 1384000
A24: целевые субсидии, предоставленные из бюджета | AS24: 07 | AT24: 01 | AU24: 0210060410 | AV24: 180 | AW24: х | AX24: х | AY24: 194000 | CG24: 194000
A25: целевые субсидии, предоставленные из бюджета | AS25: 07 | AT25: 01 | AU25: 0210060450 | AV25: 180 | AW25: х | AX25: х | AY25: 22000 | CG25: 22000
A26: целевые субсидии, предоставленные из бюджета | AS26: 07 | AT26: 02 | AU26: 0210060450 | AV26: 180 | AW26: х | AX26: х | AY26: 48000 | CG26: 48000
A27: целевые субсидии, предоставленные из бюджета | AS27: 07 | AT27: 02 | AU27: 210060530 | AV27: 180 | AW27: х | AX27: х | AY27: 487000 | CG27: 487000
A28: целевые субсидии, предоставленные из бюджета | AS28: 07 | AT28: 01 | AU28: 210062580 | AV28: 180 | AW28: х | AX28: х | AY28: 876000 | CG28: 876000
A29: целевые субсидии, предоставленные из бюджета | AS29: 07 | AT29: 09 | AU29: 210060520 | AV29: 180 | AW29: х | AX29: х | AY29: 0
A30: целевые субсидии, предоставленные из бюджета | AS30: 07 | AT30: 09 | AU30: 210060310 | AV30: 180 | AW30: х | AX30: х | AY30: 47000 | CG30: 47000
A31: целевые субсидии, предоставленные из бюджета | AS31: 07 | AT31: 09 | AU31: 210060340 | AV31: 180 | AW31: х | AX31: х | AY31: 0
A32: прочие доходы | AR32: 160 | AW32: х | AX32: х | AY32: =SUM(BQ32:DZ32) -> 0 | BQ32: х | CF32: х | CG32: х | CH32: х | CW32: х
A33: доходы от операций с активами, в том числе | AR33: 180 | AW33: х | AX33: х | AY33: =SUM(BQ33:DZ33) -> 0 | BQ33: х | CF33: х | CG33: х | CH33: х | CW33: х | EA33: х | EB33: х
A34: от реализации основных средств | AW34: х | AX34: х | AY34: =SUM(BQ34:DZ34) -> 0 | BQ34: х | CF34: х | CG34: х | CH34: х | CW34: х
A35: от реализации материальных запасов | AW35: х | AX35: х | AY35: =SUM(BQ35:DZ35) -> 0 | BQ35: х | CF35: х | CG35: х | CH35: х | CW35: х
A36: Расходы, всего: | AR36: 200 | AS36: х | AT36: х | AU36: х | AV36: х | AW36: х | AX36: х | AY36: =CF36+CG36+DL36 -> 25806898.36 | CF36: =CF37+CF83+CF59+CF69 -> 22026000 | CG36: =CG37+CG69+CG83+CG62 -> 3058000 | DL36: =DL37+DL69+DL83 -> 722898.36
A37: в том числе на выплаты персоналу, всего: | AR37: 210 | AX37: 210 | AY37: =CF37+CG37+DL37 -> 23693000 | CF37: =CF38 -> 21436000 | CG37: =CG38 -> 2257000 | DL37: =DL38 -> 0
A38: из них: оплата труда и начисления на выплаты по оплате труда | AR38: 211 | AS38: х | AT38: х | AU38: х | AV38: х | AW38: 111,119 | AX38: 211,213 | AY38: =CF38+CG38+DL38 -> 23693000 | CF38: =CF39+CF49 -> 21436000 | CG38: =CG39+CG49 -> 2257000 | DL38: =DL39+DL49+DL61 -> 0
A39: Заработная плата | AS39: х | AT39: х | AU39: х | AV39: х | AW39: 111 | AX39: 211 | AY39: =CF39+CG39+DL39 -> 18197390 | CF39: =CF40+CF41 -> 16463903 | CG39: =CG42+CG43+CG44+CG45+CG47+CG46 -> 1733487 | DL39: =DL48 -> 0
A40: Заработная плата | AS40: 07 | AT40: 02 | AU40: 0210060300 | AW40: 111 | AX40: 211 | AY40: =CF40 -> 11236560 | CF40: 11236560
A41: Заработная плата | AS41: 07 | AT41: 01 | AU41: 0210060350 | AW41: 111 | AX41: 211 | AY41: =CF41 -> 5227343 | CF41: 5227343
A42: Заработная плата | AS42: 07 | AT42: 09 | AU42: 0210060440 | AW42: 111 | AX42: 211 | AY42: =CG42 -> 632873 | CG42: 632873
A43: Заработная плата | AS43: 07 | AT43: 01 | AU43: 0210060450 | AW43: 111 | AX43: 211 | AY43: 16897 | CG43: 16897
A44: Заработная плата | AS44: 07 | AT44: 02 | AU44: 0210060450 | AW44: 111 | AX44: 211 | AY44: 36866 | CG44: 36866
A45: Заработная плата | AS45: 07 | AT45: 02 | AU45: 0210060530 | AW45: 111 | AX45: 211 | AY45: 374040 | CG45: 374040
A46: Заработная плата | AS46: 07 | AT46: 01 | AU46: 0210062580 | AW46: 111 | AX46: 211 | AY46: 672811 | CG46: 672811
A47: Заработная плата | AS47: 07 | AT47: 09 | AU47: 0210060520 | AW47: 111 | AX47: 211 | AY47: 0
A48: Заработная плата | AS48: 00 | AT48: 00 | AU48: 0000000000 | AW48: 111 | AX48: 211 | AY48: =DL48 -> 0 | DL48: 0
A49: Начисления на выплаты по оплате труда | AS49: х | AT49: х | AU49: х | AV49: х | AW49: 119 | AX49: 213 | AY49: =CF49+CG49+DL49 -> 5495610 | CF49: =CF50+CF51 -> 4972097 | CG49: =CG52+CG53+CG54+CG55+CG56+CG57 -> 523513 | DL49: =DL58 -> 0
A50: Начисления на выплаты по оплате труда | AS50: 07 | AT50: 02 | AU50: 0210060300 | AW50: 119 | AX50: 213 | AY50: =CF50 -> 3393440 | CF50: 3393440
A51: Начисления на выплаты по оплате труда | AS51: 07 | AT51: 01 | AU51: 0210060350 | AW51: 119 | AX51: 213 | AY51: =CF51 -> 1578657 | CF51: 1578657
A52: Начисления на выплаты по оплате труда | AS52: 07 | AT52: 09 | AU52: 0210060440 | AW52: 119 | AX52: 213 | AY52: =CG52 -> 191127 | CG52: 191127
A53: Начисления на выплаты по оплате труда | AS53: 07 | AT53: 01 | AU53: 0210060450 | AW53: 119 | AX53: 213 | AY53: 5103 | CG53: 5103
A54: Начисления на выплаты по оплате труда | AS54: 07 | AT54: 02 | AU54: 0210060450 | AW54: 119 | AX54: 213 | AY54: 11134 | CG54: 11134
A55: Начисления на выплаты по оплате труда | AS55: 07 | AT55: 02 | AU55: 0210060530 | AW55: 119 | AX55: 213 | AY55: 112960 | CG55: 112960
A56: Начисления на выплаты по оплате труда | AS56: 07 | AT56: 01 | AU56: 0210062580 | AW56: 119 | AX56: 213 | AY56: 203189 | CG56: 203189
A57: Начисления на выплаты по оплате труда | AS57: 07 | AT57: 09 | AU57: 0210060520 | AW57: 119 | AX57: 213 | AY57: 0
A58: Начисления на выплаты по оплате труда | AS58: 00 | AT58: 00 | AU58: 0000000000 | AW58: 119 | AX58: 213 | AY58: =DL58 -> 0 | DL58: 0
A59: Прочие выплаты | AR59: 212 | AS59: х | AT59: х | AU59: х | AV59: х | AW59: 112 | AX59: 212 | AY59: =AY60+AY61 -> 0 | CF59: =CF60+CF61 -> 0 | DL59: 0
A60: Прочие выплаты | AS60: 07 | AT60: 02 | AU60: 0210060300 | AW60: 112 | AX60: 212 | AY60: =CF60 -> 0 | DL60: 0
A61: Прочие выплаты | AS61: 07 | AT61: 01 | AU61: 0210060350 | AW61: 112 | AX61: 212 | AY61: =CF61 -> 0 | DL61: 0
A62: Социальные и иные выплаты населению, всего | AR62: 220 | AY62: =SUM(BQ62:DZ62) -> 47000 | CG62: =CG64 -> 47000
A63: из них: | AY63: 0
A64: Пособия по социальной помощи населению | AR64: 262 | AS64: 07 | AT64: 09 | AU64: 0210060310 | AW64: 360 | AX64: 262 | AY64: 47000 | CG64: 47000
A65: Начисления на пособие | AY65: 0
A66: Пенсии, пособия, выплачиваемые организациями | AY66: 0
A67: Прочие расходы | AY67: 0
A68: Прочие расходы | AY68: 0
A69: Уплата налогов, сборов и иных платежей, всего | AR69: 230 | AS69: х | AT69: х | AU69: х | AV69: х | AW69: х | AX69: х | AY69: =CG69+DL69+CF69 -> 36000 | CF69: =CF71+CF72+CF73+CF74+CF75 -> 0 | CG69: =CG74+CG72 -> 29000 | DL69: =DL72+DL73+DL75 -> 7000
A70: из них | AY70: =SUM(BQ70:DZ70) -> 0
A71: на уплату сборов по исполнению судебных актов и соглашений по возмещению аренды и т.д. | AY71: =SUM(BQ71:DZ71) -> 0
A72: уплата налогов на имущество организаций и земельного налога | AS72: 07 | AT72: 02 | AU72: 0210060300 | AW72: 851 | AX72: 290 | AY72: =SUM(BQ72:DZ72) -> 21659 | CG72: 21659 | DL72: 0
A73: уплата прочих налогов, сборов | AS73: 00 | AT73: 00 | AU73: 0000000000 | AW73: 852 | AX73: 290 | AY73: =DL73 -> 500 | CG73: 0 | DL73: 500
A74: уплата прочих налогов, сборов | AS74: 07 | AT74: 09 | AU74: 0210060440 | AW74: 852 | AX74: 290 | AY74: =CG74 -> 7341 | CG74: 7341
A75: уплата иных платежей | AS75: 00 | AT75: 00 | AU75: 0000000000 | AW75: 853 | AX75: 290 | AY75: =DL75 -> 6500 | CG75: 0 | DL75: 6500
A76: Безвозмездные перечисления организациям, всего | AR76: 240 | AY76: =SUM(BQ76:DZ76) -> 0
A77: из них | AY77: 0
A78: Безвозмездные перечисления государственным и муниципальным организациям | AY78: 0
A79: Безвозмездные перечисления организациям, за исключением государственных и муниципальных организаций | AY79: 0
A80: Прочие расходы (кроме расходов на закупку товаров, работ, услуг) | AR80: 250 | AY80: 0
A81: из них | AY81: 0
A82: Прочие расходы | AY82: 0
A83: Расходы на закупку товаров, работ, услуг, всего | AR83: 260 | AS83: х | AT83: х | AU83: х | AV83: х | AW83: х | AX83: х | AY83: =CF83+CG83+DL83 -> 2030898.36 | CF83: =CF85+CF93+CF95+CF101 -> 590000 | CG83: =CG85+CG93+CG95+CG101+CG92 -> 725000 | DL83: =DL85+DL93+DL95+DL101 -> 715898.36
A84: из них | AY84: =SUM(BQ84:DZ84) -> 0
A85: Услуги связи | AS85: х | AT85: х | AU85: х | AV85: х | AW85: 244 | AX85: 221 | AY85: =CF85+CG85+DL85 -> 38000 | CF85: =CF86+CF87 -> 38000 | CG85: =CG88 -> 0 | DL85: =DL89 -> 0
A86: Услуги связи | AS86: 07 | AT86: 02 | AU86: 0210060300 | AW86: 244 | AX86: 221 | AY86: =CF86 -> 35000 | CF86: 35000
A87: Услуги связи | AS87: 07 | AT87: 01 | AU87: 0210060350 | AW87: 244 | AX87: 221 | AY87: =CF87 -> 3000 | CF87: 3000
A88: Услуги связи | AS88: 07 | AT88: 09 | AU88: 0210060340 | AW88: 244 | AX88: 221 | AY88: =CG88 -> 0
A89: Услуги связи | AS89: 00 | AT89: 00 | AU89: 0000000000 | AW89: 244 | AX89: 221 | AY89: =DL89 -> 0
A90: Транспортные услуги | AY90: =SUM(BQ90:DZ90) -> 0
A91: Коммунальные услуги | AY91: =SUM(BQ91:DZ91) -> 0
A92: Арендная плата за пользование имуществом | AS92: 07 | AT92: 09 | AU92: 0210060440 | AW92: 244 | AX92: 224 | AY92: =SUM(BQ92:DZ92) -> 39600 | CG92: 39600
A93: Услуги по содержанию имущества | AS93: х | AT93: х | AU93: х | AV93: х | AW93: 244 | AX93: 225 | AY93: =CF93+CG93+DL93 -> 80000 | CG93: =CG94 -> 80000
A94: Услуги по содержанию имущества | AS94: 07 | AT94: 09 | AU94: 0210060440 | AW94: 244 | AX94: 225 | AY94: =CG94 -> 80000 | CG94: 80000
A95: Прочие работы, услуги | AS95: х | AT95: х | AU95: х | AV95: х | AW95: 244 | AX95: 226 | AY95: =CF95+CG95+DL95 -> 289000 | CF95: =CF98+CF100 -> 119000 | CG95: =CG96+CG97+CG98+CG99+CG100 -> 76000 | DL95: =DL97 -> 94000
A96: Прочие работы, услуги | AS96: 07 | AT96: 09 | AU96: 0210060440 | AW96: 244 | AX96: 226 | AY96: =CG96 -> 76000 | CG96: 76000
A97: Прочие работы, услуги | AU97: 0000000000 | AW97: 244 | AX97: 226 | AY97: =DL97 -> 94000 | CG97: 0 | DL97: 94000
A98: Прочие работы, услуги | AS98: 07 | AT98: 02 | AU98: 0210060300 | AW98: 244 | AX98: 226 | AY98: =CF98 -> 90000 | CF98: 90000 | CG98: 0
A99: Прочие работы, услуги | AS99: 07 | AT99: 09 | AU99: 0210060340 | AW99: 244 | AX99: 226 | AY99: =CG99 -> 0
A100: Прочие расходы,услуги | AS100: 07 | AT100: 01 | AU100: 0210060350 | AW100: 244 | AX100: 226 | AY100: =CF100 -> 29000 | CF100: 29000 | CG100: 0
A101: Увеличение стоимости материальных запасов | AS101: х | AT101: х | AU101: х | AV101: х | AW101: 244 | AX101: 340 | AY101: =CF101+CG101+DL101 -> 1584298.36 | CF101: =CF103+CF104 -> 433000 | CG101: =CG102+CG106+CG105 -> 529400 | DL101: =DL107 -> 621898.36
A102: Увеличение стоимости материальных запасов | AS102: 07 | AT102: 09 | AU102: 0210060440 | AW102: 244 | AX102: 340 | AY102: =CG102 -> 335400 | CG102: 335400
A103: Увеличение стоимости материальных запасов | AS103: 07 | AT103: 02 | AU103: 0210060300 | AW103: 244 | AX103: 340 | AY103: =CF103 -> 127000 | CF103: 127000
A104: Увеличение стоимости материальных запасов | AS104: 07 | AT104: 01 | AU104: 0210060350 | AW104: 244 | AX104: 340 | AY104: =CF104 -> 306000 | CF104: 306000
A105: Увеличение стоимости материальных запасов | AS105: 07 | AT105: 01 | AU105: 0210060410 | AW105: 244 | AX105: 340 | AY105: =CG105 -> 194000 | CG105: 194000
A106: Увеличение стоимости материальных запасов | AW106: 244 | AX106: 340 | AY106: =CG106 -> 0
A107: Увеличение стоимости материальных запасов | AS107: 00 | AT107: 00 | AU107: 0000000000 | AW107: 244 | AX107: 340 | AY107: =DL107 -> 621898.36 | DL107: 621898.36
A108: Поступление финансовых активов, всего | AR108: 300 | AS108: х | AT108: х | AU108: х | AV108: х | AW108: х | AX108: х | AY108: =CF108+CG108+DL108 -> 25806898.36 | CF108: 22026000 | CG108: 3058000 | DL108: 722898.36
A109: из них: | AS109: х | AT109: х | AU109: х | AY109: =SUM(BQ109:DZ109) -> 0 | CF109: 0,00 | CG109: 0,00 | DL109: 0,00
A110: увеличение остатков средств | AR110: 310 | AS110: х | AT110: х | AU110: х | AX110: х | AY110: =CF110+CG110+DL110 -> 25806898.36 | CF110: 22026000 | CG110: 3058000 | DL110: 722898.36
A111: прочие поступления | AR111: 320 | AS111: х | AT111: х | AU111: х | AY111: =SUM(BQ111:DZ111) -> 0 | CF111: 0 | CG111: 0 | DL111: 0,00
A112: Выбытие финансовых активов, всего | AR112: 400 | AS112: х | AT112: х | AU112: х | AV112: х | AW112: х | AX112: х | AY112: =CF112+CG112+DL112 -> 25806898.36 | CF112: 22026000 | CG112: 3058000 | DL112: 722898.36
A113: из них: | AS113: х | AT113: х | AU113: х | AY113: =SUM(BQ113:DZ113) -> 0 | CF113: 0 | CG113: 0 | DL113: 0,00
A114: уменьшение остатков средств | AR114: 410 | AS114: х | AT114: х | AU114: х | AX114: х | AY114: =CF114+CG114+DL114 -> 25806898.36 | CF114: 22026000 | CG114: 3058000 | DL114: 722898.36
A115: прочие выбытие | AR115: 420 | AS115: х | AT115: х | AU115: х
A116: Остаток средств на начало года | AR116: 500 | AS116: х | AT116: х | AU116: х | AV116: х | AW116: х | AX116: х | CF116: х | CG116: х
A117: Остаток средств на конец года | AR117: 600 | AS117: х | AT117: х | AU117: х | AV117: х | AW117: х | AX117: х | AY117: =CF117+CG117+DL117 -> 0 | DL117: 0
A119: По строкам 500, 600 в графах 5 - 12 указываются планируемые суммы остатков средств на начало и на конец планируемого года либо указываются фактические остатки средств при внесении изменений в утвержденный план после завершения отчетного финансового года;
A121: в графе 3 по строкам 110 - 180, 300 - 420 указываются коды классификации сектора государственного управления, по строкам 210 - 280 указываются коды видов расходов бюджетов;
A123: по строке 120 в графе 12 указываются плановые показатели по доходам от грантов, предоставление которых из соответствующего бюджета бюджетной системы Российской Федерации осуществляется по кодам 613 "Гранты в Форме субсидии бюджетным учреждениям" или 623 "Гранты в Форме субсидии автономным учреждениям" видов расходов бюджетов.

Sheet 4
DA2: Таблица 2.3
A3: IV. Показатели выплат по расходам на закупку товаров, работ, услуг учреждения на 2018г.
A5: Наименование показателя | AR5: Код строки | AS5: Год начала закупки | BJ5: Коды бюджетной классификации Российской Федерации | BN5: Код дополнительной классификации | BO5: Сумма выплат по расходам на закупку товаров, работ и услуг, руб.
BO6: всего на закупки | CL6: в том числе
CL7: в соответствии с Федеральным законом от 5 апреля 2013 г. № 44 -ФЗ "О контрактной системе в сферезакупок товаров, работ, услуг для обеспечения государственных и муниципальных нужд" | DL7: в соответствии с Федеральным законом от 18 июля 2011 г. № 223 -ФЗ "О закупках товаров, работ, услуг отдельными видами юридических лиц"
BJ8: Код раздела | BK8: код подраздела | BL8: Код целевой статьи расходов | BM8: код вида расходов ( для выплат) | BN8: Код экономической классификации расходов ( для выплат) | BO8: на 2018г. очередной финансовый год | CE8: на 2019г. 1-й год планового период | CK8: на 2020г. 2-й год планового период | CL8: на 2018г. очередной финансовый год | CZ8: на 2019г. 1-й год планового период | DA8: на 2020г. 2-й год планового период | DL8: на 2018г. очередной финансовый год | DM8: на 2019г. 1-й год планового период | DN8: на 2020г. 2-й год планового период
A10: 1 | AR10: 2 | AS10: 3 | BJ10: 4 | BK10: 5 | BL10: 6 | BM10: 7 | BN10: 8 | BO10: 9 | CE10: 10 | CK10: 11 | CL10: 12 | CZ10: 13 | DA10: 14 | DL10: 15 | DM10: 16 | DN10: 17
A11: Выплаты по расходам на закупку товаров, работ, услуг всего: | AR11: 0001 | AS11: х | BN11: Х | BO11: =BO14 -> 2518270.36 | CE11: =CE14 -> 2013898.36 | CK11: =CK14 -> 2030898.36 | CL11: =CQ14 -> 2518270.36 | CZ11: =CZ14 -> 2013898.36 | DA11: =DF14 -> 2030898.36
A12: в том числе: на оплату контрактов, заключенных до начала очередного финансового года | AR12: 1001 | AS12: х | BN12: Х
A14: на закупку товаров, работ, услуг по году начала закупки: | AR14: 2001 | AS14: 2018 | BN14: Х | BO14: =BO15+BO16+BO17+BO18+BO19+BO20+BO21+BO22+BO23+BO24+BO27+BO29+BO30+BO31+BO32+BO33+BO28+BO25+BO26 -> 2518270.36 | CE14: =CE15+CE16+CE17+CE18+CE19+CE20+CE21+CE22+CE23+CE24+CE27+CE29+CE30+CE31+CE32+CE33+CE28+CE25 -> 2013898.36 | CK14: =CK15+CK16+CK17+CK18+CK19+CK20+CK21+CK22+CK23+CK24+CK27+CK29+CK30+CK31+CK32+CK33+CK28+CK25 -> 2030898.36 | CL14: 1774777.6 | CQ14: =CL15+CL16+CL17+CL18+CL19+CL20+CL21+CL22+CL23+CL24+CL27+CL29+CL30+CL31+CL32+CL33+CL28+CL25+CL26 -> 2518270.36 | CZ14: =CZ15+CZ16+CZ17+CZ18+CZ19+CZ20+CZ21+CZ22+CZ23+CZ24+CZ27+CZ29+CZ30+CZ31+CZ32+CZ33+CZ28+CZ25 -> 2013898.36 | DA14: 1756000 | DF14: =DA15+DA16+DA17+DA18+DA19+DA20+DA21+DA22+DA23+DA24+DA27+DA29+DA30+DA32+DA33+DA28+DA31+DA25 -> 2030898.36
A15: Услуги связи | BJ15: 07 | BK15: 02 | BL15: 0210060340 | BM15: 244 | BN15: 221 | BO15: 76641 | CL15: 76641
A16: Услуги связи | BJ16: 07 | BK16: 02 | BL16: 0210060300 | BM16: 244 | BN16: 221 | BO16: 27795.37 | CE16: 35000 | CK16: 35000 | CL16: 27795.37 | CZ16: 35000 | DA16: 35000
A17: Услуги связи | BJ17: 07 | BK17: 02 | BL17: 0210060350 | BM17: 244 | BN17: 221 | BO17: 2000 | CE17: 3000 | CK17: 3000 | CL17: 2000 | CZ17: 3000 | DA17: 3000
A18: Арендная плата за пользование имуществом | BJ18: 07 | BK18: 09 | BL18: 0210060440 | BM18: 244 | BN18: 224 | BO18: 39600 | CE18: 39600 | CK18: 39600 | CL18: 39600 | CZ18: 39600 | DA18: 39600
A19: Услуги по содержанию имущества | BJ19: 07 | BK19: 09 | BL19: 0210060440 | BM19: 244 | BN19: 225 | BO19: 80000 | CE19: 80000 | CK19: 80000 | CL19: 80000 | CZ19: 80000 | DA19: 80000
A20: Прочие работы, услуги | BJ20: 07 | BK20: 09 | BL20: 9070065730 | BM20: 244 | BN20: 226 | BO20: 296360 | CE20: 0 | CK20: 0 | CL20: 296360 | CZ20: 0 | DA20: 0
A21: Прочие работы, услуги | BJ21: 07 | BK21: 09 | BL21: 0210060440 | BM21: 244 | BN21: 226 | BO21: 78988.4 | CE21: 76000 | CK21: 76000 | CL21: 78988.4 | CZ21: 76000 | DA21: 76000
A22: Прочие работы, услуги | BJ22: 00 | BK22: 00 | BL22: 000000000 | BM22: 244 | BN22: 226 | BO22: 94000 | CE22: 94000 | CK22: 94000 | CL22: 94000 | CZ22: 94000 | DA22: 94000
A23: Прочие работы, услуги | BJ23: 07 | BK23: 02 | BL23: 0210060340 | BM23: 244 | BN23: 226 | BO23: 3000 | CL23: 3000
A24: Прочие работы, услуги | BJ24: 07 | BK24: 02 | BL24: 0210060300 | BM24: 244 | BN24: 226 | BO24: 100789.08 | CE24: 90000 | CK24: 90000 | CL24: 100789.08 | CZ24: 90000 | DA24: 90000
A25: Прочие работы, услуги | BJ25: 07 | BK25: 02 | BL25: 0210060350 | BM25: 244 | BN25: 226 | BO25: 31000 | CE25: 28000 | CK25: 29000 | CL25: 31000 | CZ25: 28000 | DA25: 29000
A26: Прочие работы, услуги | BJ26: 07 | BK26: 07 | BL26: 4120065900 | BM26: 244 | BN26: 226 | BO26: 113697 | CE26: 0 | CK26: 0 | CL26: 113697 | CZ26: 0 | DA26: 0
A27: Прочие работы, услуги | BJ27: 07 | BK27: 09 | BL27: 0230065610 | BM27: 244 | BN27: 226 | BO27: 0 | CE27: 0 | CK27: 0 | CL27: 0 | CZ27: 0 | DA27: 0
A29: Увеличение стоимости материальных запасов | BJ29: 07 | BK29: 09 | BL29: 0210060440 | BM29: 244 | BN29: 340 | BO29: 338085.6 | CE29: 335400 | CK29: 335400 | CL29: 338085.6 | CZ29: 335400 | DA29: 335400
A30: Увеличение стоимости материальных запасов | BJ30: 07 | BK30: 01 | BL30: 0210060350 | BM30: 244 | BN30: 340 | BO30: 297000 | CE30: 294000 | CK30: 306000 | CL30: 297000 | CZ30: 294000 | DA30: 306000
A31: Увеличение стоимости материальных запасов | BJ31: 07 | BK31: 01 | BL31: 0210060410 | BM31: 244 | BN31: 340 | BO31: 195000 | CE31: 194000 | CK31: 194000 | CL31: 195000 | CZ31: 194000 | DA31: 194000
A32: Увеличение стоимости материальных запасов | BJ32: 07 | BK32: 02 | BL32: 0210060300 | BM32: 244 | BN32: 340 | BO32: 120415.55 | CE32: 123000 | CK32: 127000 | CL32: 120415.55 | CZ32: 123000 | DA32: 127000
A33: Увеличение стоимости материальных запасов | BJ33: 00 | BK33: 00 | BL33: 000000000 | BM33: 244 | BN33: 340 | BO33: 623898.36 | CE33: 621898.36 | CK33: 621898.36 | CL33: 623898.36 | CZ33: 621898.36 | DA33: 621898.36
BN34: 0000000000.244 | CE34: 0 | CK34: 0 | CL34: 0 | CZ34: 0 | DA34: 0
A36: в графах 8 - 13 указываются:
A38: по строке 1001 - суммы оплаты в соответствующем финансовом году по контрактам (договорам), заключенным до начала очередного финансового года, при этом в графе 8 -10 - указываются суммы оплаты по контрактам, заключенным в соответствии с Федеральным законом от 05.02.2013 № 44-ФЗ "О контрактной системе в сферезакупок товаров, работ, услуг для обеспечения государственных и муниципальных нужд", а в графе 11 - 13 - по договорам, заключенным в соответствии с Федеральным законом от 18.07.2011 № 223-ФЗ "О закупках товаров, работ, услуг отдельными видами юридических лиц";
A40: по строке 2001 - в разрезе года начала закупки указываются суммы планируемых в соответствующем финансовом году выплат по контрактам (договорам), для заключения которых планируется начать закупку, при этом в графе 8 - 10 - указываются суммы планируемых выплат по контрактам, для заключения которых в соответствующем году согласно Федеральному закону № 44-ФЗ планируется разместить извещение об осуществлении закупки товаров, работ, услуг для обнспечения государственных или муниципальных нужд либо направить приглашение принять участие в определении поставщика (подрядчика, исполнителя) или проект контракта, а в графе 11 - 13 указываются суммы планируемых выплат по договорам, для заключения которых в соответствии с Федеральным законом № 223-ФЗ осуществляется закупка (планируется начать закупку) в порядке, установленном положением о закупке.
A42: При этом необходимо обеспечить соотношение следующих показателей:
A43: 1) показатели граф 5-13 по строке 0001 должны бвть равны сумме показателей соответствующих граф по строкам 1001 и 2001;
A44: 2) показатели графы 5 по строкам 0001, 10001 и 20001 должны быть равны сумме показателей граф 8 и 11 по соответствующим строкам;
A45: 3) показатели графы 6 по строкам 0001, 10001 и 20001 должны быть равны сумме показателей граф 9 и 12 по соответствующим строкам;
A46: 4) показатели графы 7 по строкам 0001, 10001 и 20001 должны быть равны сумме показателей граф 10 и 13 по соответствующим строкам;
A47: 5) показатель по строке 0001 графы 8 - 10 по очередному году формирования показателя выплат по расходам на закупку товаров, работ, услуг:
A48: а) для бюджетных учреждений не могут быть меньше показателя по строке 260 в графах 6 - 10 раздела III на соответствующий год;
A49: б) для автономных учреждений не могут быть меньше показателя по строке 260 в графе 9 раздела III на соответствующий год;
A50: 6) для бюджетных учреждений показатели строки 0001 графы 11 - 13 не могут быть больше показателя строки 260 графы 11 раздела iii на соответствующий год;
A51: 7) показатели строки 0001 графы 11 - 13 должны быть равны нулю, если все закупки товаров, работ и услуг осуществляются в соответствии с Федеральным законом № 44-ФЗ.

Sheet 5
CF3: Таблица 3
A4: V . Сведения о средствах, поступающих во временное распоряжение учреждения
A5: На 2018 г.
A6: (очередной финансовый год)
A8: Наименование показателя | CA8: Код строки | CP8: Сумм, руб. (с точностью до двух знаков после запятой - 0,00)
A9: 1 | CA9: 2 | CP9: 3
A10: Остаток средств на начало года | CA10: 010
A11: Остаток средств на конец года | CA11: 020
A12: Поступление | CA12: 030
A13: Выбытие | CA13: 040
CF15: Таблица 4
A16: VI . Справочная информация
A17: Наименование показателя | CA17: Код строки | CP17: Сумма (тыс.рублей)
A18: 1 | CA18: 2 | CP18: 3
A19: Объем публичных обязательств, всего: | CA19: 010
A20: Объем бюджетных инвестиций (в части переданных полномочий государственного заказчика в соответствии с Бюджетным кодексом Российской Федерации), всего: | CA20: 020
A21: объем средств, поступивших во временное распоряжение, всего: | CA21: 030
A23: Руководитель государственного учреждения
A24: (уполномоченное лицо) | BN24: ______________________ | CL24: Хураськина С.Т.
BO25: (подпись) | CL25: (расшифровка подписи)
A27: Руководитель финансово-экономической
A28: службы | BN28: ______________________ | CL28: Лопатина В.П.
BO29: (подпись) | CL29: (расшифровка подписи)
A30: Главный бухгалтер | BN30: ______________________ | CL30: Лопатина В.П.
BO31: (подпись) | CL31: (расшифровка подписи)
A33: Исполнитель | BN33: ______________________ | CL33: Лопатина В.П.
BO34: (подпись) | CL34: (расшифровка подписи)
A35: тел. | G35: 884654 31101
A37: " " 2018 г.
A39: М.П.
